Cogmind - Beta 14 @@@ ROGUE MODE // 2024.09.05 @ 11:21:20 Player: Kaeinara Result: Destroyed by B-75 Beast with Magnetic Acceleration Cannon Performance ------------- Evolutions (3) 1500 Regions Visited (10) 2000 Robots Destroyed (57) 285 Value Destroyed (1989) 1989 Prototype IDs (45) 900 Alien Tech Used (0) 0 Bonus (738) 738 TOTAL SCORE: 7412 Bonus ------- Follower Combat Kills 168 Aligned with FarCom 300 Met Data Miner 300 Friendly Fire -30 Cogmind --------- Core Integrity 0/700 Matter 272/300 Energy 100/100 System Corruption 1% Temperature Cool (12) Movement Core (100) Ox1 Location -6/Proximity Caves Parts ------- > --- POWER (2) -------- (None) > --- PROPULSION (4) --- (None) > --- UTILITY (4) ------ Modified TNC Shock Absorption System > --- WEAPON (3) ------- Dirty Datajack > --- INVENTORY (5) ---- (None) Peak State ------------ > --- POWER ------------ Micro Nuclear Core Micro Nuclear Core > --- PROPULSION ------- Improved Carbon-fiber Leg Improved Titanium Leg Improved Titanium Leg Makeshift Leg > --- UTILITY ---------- Large Storage Unit Modified TNC Core Analyzer Improved Reaction Control System > --- WEAPON ----------- Flak Gun Assault Cannon Ripper > --- INVENTORY -------- Improved Ion Engine Aluminum Leg Aluminum Leg Improved Titanium Leg Heat Sink Improved Cooling System Improved Targeting Computer Weapon Cycler Shock Absorption System Plasma Rifle Plasma Cannon Autogun Gauss Rifle Improved Light Cannon Dirty Datajack [Rating: 55] Favorites ----------- Power Micro Nuclear Core Engine Light Ion Engine Power Core Micro Nuclear Core Propulsion Aluminum Leg Leg Aluminum Leg Wheel Wheel Utility Large Storage Unit Device Improved Reaction Control System Storage Large Storage Unit Processor Core Analyzer Hackware Hacking Suite Protection Light Armor Plating Weapon Improved Light Cannon Energy Gun EM Pulse Gun Energy Cannon Plasma Cannon Ballistic Gun Flak Gun Ballistic Cannon Improved Light Cannon Slashing Weapon Ripper Special Melee Weapon Datajack Build | -11 -10 -10 -10 -9 -8 -7 -7 -7 -7 -6 ------- Run | Yrd Mat Min Exi Min Mat Fac Low Low Dat Pro Slots Evolved 6 | . . . . . 4 2 . . . . Power 1 | . . . . . 1 . . . . . Propulsion 2 | . . . . . 2 . . . . . Utility 2 | . . . . . 1 1 . . . . Weapon 1 | . . . . . . 1 . . . . Parts Attached 82 | 6 12 . . 1 20 16 4 3 . 20 Power 17 | 1 2 . . . 6 4 . . . 4 Engine 11 | 1 1 . . . 5 1 . . . 3 Core 6 | . 1 . . . 1 3 . . . 1 Reactor . | . . . . . . . . . . . Propulsion 26 | 2 . . . . 10 5 1 3 . 5 Treads . | . . . . . . . . . . . Leg 25 | 2 . . . . 10 5 1 3 . 4 Wheel 1 | . . . . . . . . . . 1 Hover . | . . . . . . . . . . . Flight . | . . . . . . . . . . . Utility 12 | 1 4 . . . 1 1 1 . . 4 Device 4 | . 1 . . . . . 1 . . 2 Storage 2 | 1 1 . . . . . . . . . Processor 3 | . . . . . 1 1 . . . 1 Hackware 1 | . 1 . . . . . . . . . Protection 2 | . 1 . . . . . . . . 1 Artifact . | . . . . . . . . . . . Weapon 27 | 2 6 . . 1 3 6 2 . . 7 Energy Gun 3 | 1 . . . . . . . . . 2 Energy Cannon 1 | . . . . . . . . . . 1 Ballistic Gun 8 | 1 1 . . . . 3 1 . . 2 Ballistic Cannon 10 | . 3 . . 1 2 3 . . . 1 Launcher . | . . . . . . . . . . . Special Weapon . | . . . . . . . . . . . Impact Weapon . | . . . . . . . . . . . Slashing Weapon 1 | . . . . . . . 1 . . . Piercing Weapon . | . . . . . . . . . . . Special Melee Weapon 4 | . 2 . . . 1 . . . . 1 Unidentified Prototypes . | . . . . . . . . . . . Parts Lost 42 | . . . . . 8 4 1 . . 29 Power 11 | . . . . . 4 1 . . . 6 Propulsion 16 | . . . . . 4 2 1 . . 9 Utility 5 | . . . . . . . . . . 5 Weapon 10 | . . . . . . 1 . . . 9 Highest Loss Streak 10 | . . . . . 6 3 1 . . 10 To Critical Strikes . | . . . . . . . . . . . Average Slot Usage (%) 96 | . 99 100 100 100 98 98 99 100 100 78 Engine 3 | . 1 . . . 9 5 . . . 2 Core 10 | . 12 14 14 14 7 8 15 15 15 5 Leg 28 | . 28 28 28 28 35 29 29 30 30 18 Device 1 | . . . . . . . 3 7 7 5 Storage 9 | . 14 14 14 14 9 7 7 7 7 5 Processor 9 | . . . . . 9 15 15 15 15 14 Hackware 6 | . 2 14 14 14 9 7 3 . . . Protection 1 | . 10 . . . . . . . . 1 Ballistic Gun 4 | . 5 . . . . 8 8 7 7 5 Ballistic Cannon 13 | . 18 14 14 27 17 12 7 7 7 2 Slashing Weapon 2 | . . . . . . . 5 7 7 5 Special Melee Weapon 2 | . 2 14 14 . . . . . . 1 Peak Build Rating 55 | 6 15 14 14 16 38 48 49 55 55 55 Average Rating 31 | 4 11 14 14 15 30 38 47 51 55 40 On Entrance 26 | . 6 14 14 14 16 20 48 49 55 55 Naked Turns . | . . . . . . . . . . . Heaviest Build 52 | 12 36 30 30 33 42 50 46 46 46 52 Greatest Support 78 | 20 20 20 20 20 72 63 63 78 78 78 Greatest Overweight (x) 13 | 2 1 1 1 1 1 1 . . . 13 Average Overweight (x) . | . . 1 1 1 . . . . . . Largest Inventory Capacity 15 | 8 15 15 15 15 15 15 15 15 15 15 Average Capacity 14 | 7 13 15 15 15 15 15 15 15 15 12 Most Carried 15 | 5 15 15 15 15 15 15 15 15 15 15 Average Carried 13 | 2 12 15 14 14 13 13 14 15 15 8 Final Capacity 15 | 8 15 15 15 15 15 15 15 15 15 5 Final Carried 15 | 4 15 15 15 15 14 15 15 15 15 . Class Distribution -------------------- 67% | Mutant 8% | Scavenger-Skirmisher 8% | Derelict-Mutant 7% | Scavenger-Mutant 7% | Skirmisher Dominant Class ---------------- Mutant | -10/Materials Mutant | -10/Mines Mutant | -10/Exiles Mutant | -9/Mines Mutant | -8/Materials Scavenger-Skirmisher | -7/Factory Mutant | -7/Lower Caves Mutant | -7/Lower Caves Derelict-Mutant | -7/Data Miner Mutant | -6/Proximity Caves Resources | -11 -10 -10 -10 -9 -8 -7 -7 -7 -7 -6 ----------- Run | Yrd Mat Min Exi Min Mat Fac Low Low Dat Pro Matter Collected 1987 | 164 298 . . 46 510 423 73 39 . 434 Remotely . | . . . . . . . . . . . Salvage Created 1429 | . 185 . . 64 486 234 31 . . 429 Parts 90 | . 19 . . 8 26 16 6 . . 15 Haulers Intercepted . | . . . . . . . . . . . Recyclers Shooed . | . . . . . . . . . . . Parts Field Recycled . | . . . . . . . . . . . Retrieved Matter . | . . . . . . . . . . . Parts Self-Destructed 26 | . . . . . . . 10 . . 16 Prevented . | . . . . . . . . . . . Kills | -11 -10 -10 -10 -9 -8 -7 -7 -7 -7 -6 ------- Run | Yrd Mat Min Exi Min Mat Fac Low Low Dat Pro Combat Hostiles Destroyed 58 | . 6 . . 5 19 9 1 . . 18 Melee 1 | . . . . . . 1 . . . . Guns 16 | . 1 . . . . 2 1 . . 12 Cannons 37 | . 3 . . 5 19 4 . . . 6 AOE 4 | . 2 . . . . 2 . . . . Classes Destroyed 10 | . 5 . . . 1 2 . . . 2 Worker 3 | . 1 . . . 1 1 . . . . Operator 1 | . 1 . . . . . . . . . Watcher 2 | . 1 . . . 1 . . . . . Swarmer 19 | . 3 . . 4 6 . . . . 6 Grunt 19 | . 3 . . 1 9 4 . . . 2 Brawler 1 | . . . . . . . . . . 1 Sentry 7 | . . . . . 4 2 . . . 1 Hunter 2 | . . . . . . 1 . . . 1 Programmer 3 | . . . . . . 2 1 . . . Assembled 7 | . . . . . . . . . . 7 Best Kill Streak 7 | . 4 . . 4 5 2 1 . . 7 Combat Bots Only 7 | . 3 . . 4 5 2 1 . . 7 Max Kills in Single Turn 3 | . 3 . . 1 1 2 1 . . 1 Gunslinging . | . . . . . . . . . . . Exploded 2 | . 2 . . . . 2 . . . . Melee 1 | . . . . . . 1 . . . . Uniques/NPCs Destroyed . | . . . . . . . . . . . Combat | -11 -10 -10 -10 -9 -8 -7 -7 -7 -7 -6 -------- Run | Yrd Mat Min Exi Min Mat Fac Low Low Dat Pro Hostile Shots Fired 569 | . 8 . . 17 108 153 11 . . 272 Missed 172 | . 5 . . 3 28 51 7 . . 78 Damage Taken 5780 | . 69 . . 110 1069 1440 70 . . 3022 Core 889 | . 18 . . 22 140 215 14 . . 480 Absorbed by Shields . | . . . . . . . . . . . Core Remaining (%) 86 | 100 . . . 84 74 . . . . . Volleys Fired 180 | . 13 . . 8 70 19 2 . . 68 Largest 3 | . 2 . . 2 2 3 3 . . 2 Hottest 115 | . 78 . . 78 78 115 100 . . 108 Shots Fired 338 | . 26 . . 9 140 55 7 . . 101 Gun 99 | . 10 . . . . 24 4 . . 61 Cannon 239 | . 16 . . 9 140 31 3 . . 40 Launcher . | . . . . . . . . . . . Special . | . . . . . . . . . . . Kinetic 310 | . 22 . . 9 140 55 7 . . 77 Thermal 24 | . . . . . . . . . . 24 Explosive . | . . . . . . . . . . . Electromagnetic 4 | . 4 . . . . . . . . . Robot Hit Streak 9 | . 3 . . 4 8 9 4 . . 8 Robot Miss Streak 11 | . 4 . . 1 6 6 3 . . 11 Penetration Max 1 | . . . . . . . . . . 1 Secondary Targets . | . . . . . . . . . . . Shots Hit Robots 195 | . 14 . . 6 69 35 5 . . 66 Core Hits 140 | . 11 . . 5 35 33 5 . . 51 Critical Kills . | . . . . . . . . . . . Critical Parts Destroyed . | . . . . . . . . . . . Critical Strikes 4 | . . . . . 4 . . . . . Blast 4 | . . . . . 4 . . . . . Melee Attacks 4 | . 3 . . . 1 . . . . . Impact . | . . . . . . . . . . . Slashing . | . . . . . . . . . . . Piercing . | . . . . . . . . . . . Sneak Attacks 3 | . 3 . . . . . . . . . Combat Hostiles . | . . . . . . . . . . . Follow-up Attacks . | . . . . . . . . . . . Damage Inflicted 4378 | . 267 . . 128 1496 866 117 . . 1504 Guns 1250 | . 59 . . . . 306 86 . . 799 Cannons 2768 | . 135 . . 128 1496 273 31 . . 705 Explosions 269 | . 73 . . . . 196 . . . . Melee . | . . . . . . . . . . . Ramming 91 | . . . . . . 91 . . . . Kinetic 3588 | . 171 . . 128 1496 579 117 . . 1097 Thermal 676 | . 73 . . . . 196 . . . 407 Explosive . | . . . . . . . . . . . Electromagnetic 23 | . 23 . . . . . . . . . Impact . | . . . . . . . . . . . Slashing . | . . . . . . . . . . . Piercing . | . . . . . . . . . . . Highest Corruption 1 | . . . . . . . 1 1 1 1 Average Corruption 1 | . . . . . . . 1 1 1 1 Corruption Purged . | . . . . . . . . . . . Corruption Blocked . | . . . . . . . . . . . Effects 20 | . . . . . . . 4 7 . 9 Message Errors 8 | . . . . . . . 1 3 . 4 Matter Fused 3 | . . . . . . . . 1 . 2 Heat Flow Errors 3 | . . . . . . . 2 . . 1 Energy Discharges 3 | . . . . . . . . 1 . 2 Data Loss (minor) 2 | . . . . . . . . 2 . . Misfires 1 | . . . . . . . 1 . . . Overload Shots . | . . . . . . . . . . . Overflow Damage 172 | . . . . 2 20 129 . . . 21 Projectiles 43 | . . . . 2 20 . . . . 21 Explosions 129 | . . . . . . 129 . . . . Melee . | . . . . . . . . . . . Knockbacks 24 | . 1 . . . 15 2 . . . 6 Impact . | . . . . . . . . . . . Kinetic 24 | . 1 . . . 15 2 . . . 6 Secondary . | . . . . . . . . . . . Self-Inflicted Damage 378 | . 29 . . . . 349 . . . . Shots 5 | . 1 . . . . 4 . . . . Rammed . | . . . . . . . . . . . Targets Rammed 28 | . . . . . . 28 . . . . Kicked 28 | . . . . . . 28 . . . . Crushed . | . . . . . . . . . . . Highest Temperature 429 | . 108 . . 24 414 135 267 . . 429 Average Temperature 83 | . 29 . . 8 95 43 91 . . 104 Received Heat Transfer 1537 | . 15 . . . 441 303 . . . 778 Effects 4 | . . . . . 4 . . . . . Shutdowns 1 | . . . . . 1 . . . . . Matter Decay 1 | . . . . . 1 . . . . . Damage (minor) 2 | . . . . . 2 . . . . . Siege Activations . | . . . . . . . . . . . Robots Corrupted . | . . . . . . . . . . . Combat Hostiles . | . . . . . . . . . . . Parts Fried . | . . . . . . . . . . . Impact Corruptions . | . . . . . . . . . . . Robots Melted . | . . . . . . . . . . . Combat Hostiles . | . . . . . . . . . . . Parts Melted 1 | . . . . . . 1 . . . . Heat Transferred 1100 | . 100 . . . . 200 . . . 800 Parts Sabotaged . | . . . . . . . . . . . Parts Stolen . | . . . . . . . . . . . Parts Stripped . | . . . . . . . . . . . Power Chain Reactions 1 | . 1 . . . . . . . . . Alert | -11 -10 -10 -10 -9 -8 -7 -7 -7 -7 -6 ------- Run | Yrd Mat Min Exi Min Mat Fac Low Low Dat Pro Peak Influence 365 | . 168 . . 120 365 188 . . . . Initial 151 | . . . . . . 151 . . . . Average 84 | . 42 . . 43 156 82 . . . . Maximum Alert Level 1 | . . . . . 1 . . . . . Low Security (%) 88 | 100 100 100 . 100 60 100 . . . . Level 1 11 | . . . . . 39 . . . . . Level 2 . | . . . . . . . . . . . Level 3 . | . . . . . . . . . . . Level 4 . | . . . . . . . . . . . Level 5 . | . . . . . . . . . . . High Security . | . . . . . . . . . . . Max Security . | . . . . . . . . . . . Squads Dispatched 9 | . 1 . . 1 2 5 . . . . Investigation 2 | . 1 . . 1 . . . . . . Extermination 2 | . . . . . . 2 . . . . Reinforcement 2 | . . . . . 2 . . . . . Assault . | . . . . . . . . . . . Garrison 3 | . . . . . . 3 . . . . Intercept . | . . . . . . . . . . . Searches Triggered . | . . . . . . . . . . . Construction Impeded . | . . . . . . . . . . . Haulers Reinforced . | . . . . . . . . . . . Active Scanning Responses . | . . . . . . . . . . . Cargo Convoy Interrupts . | . . . . . . . . . . . Stealth | -11 -10 -10 -10 -9 -8 -7 -7 -7 -7 -6 --------- Run | Yrd Mat Min Exi Min Mat Fac Low Low Dat Pro Distress Signals 3 | . 2 . . . . 1 . . . . Communications Jammed . | . . . . . . . . . . . Distress Signals . | . . . . . . . . . . . Times Spotted 90 | . 12 . . 5 36 13 2 . . 22 Peak Tracking Total 7 | . 4 . . 4 5 3 1 . . 7 Tactical Retreats 5 | . 1 . . . 2 . 1 . . 1 Traps | -11 -10 -10 -10 -9 -8 -7 -7 -7 -7 -6 ------- Run | Yrd Mat Min Exi Min Mat Fac Low Low Dat Pro Traps Triggered 2 | . 1 . . . . 1 . . . . Indirectly . | . . . . . . . . . . . Trap Hack Attempts . | . . . . . . . . . . . Triggered . | . . . . . . . . . . . Disarmed . | . . . . . . . . . . . Reprogrammed . | . . . . . . . . . . . Reused . | . . . . . . . . . . . Traps Extracted . | . . . . . . . . . . . Installed . | . . . . . . . . . . . Triggered . | . . . . . . . . . . . Machines | -11 -10 -10 -10 -9 -8 -7 -7 -7 -7 -6 ---------- Run | Yrd Mat Min Exi Min Mat Fac Low Low Dat Pro Machines Disabled 9 | . 1 . . . 2 6 . . . . Max in Single Turn 6 | . 1 . . . 1 6 . . . . Garrison Access 1 | . . . . . 1 . . . . . Machines Repaired . | . . . . . . . . . . . Machines Dismantled . | . . . . . . . . . . . Machines Sabotaged . | . . . . . . . . . . . Overloaded Fab Kills . | . . . . . . . . . . . Hacking | -11 -10 -10 -10 -9 -8 -7 -7 -7 -7 -6 --------- Run | Yrd Mat Min Exi Min Mat Fac Low Low Dat Pro Machines Accessed 29 | . 8 . 1 1 7 6 1 . 4 1 Terminals 18 | . 8 . . . 6 3 . . . 1 Fabricators . | . . . . . . . . . . . Repair Stations . | . . . . . . . . . . . Recycling Units 2 | . . . . . . 2 . . . . Scanalyzers . | . . . . . . . . . . . Garrison Access 2 | . . . . . 1 1 . . . . Total Hacks 86 | . 22 . 1 1 15 16 1 . 29 1 Successful 65 | . 10 . 1 1 10 12 1 . 29 1 Failed 21 | . 12 . . . 5 4 . . . . Catastrophic 3 | . 2 . . . . 1 . . . . Database Lockouts . | . . . . . . . . . . . Manual 3 | . . . 1 . . 1 . . . 1 Terminals 44 | . 22 . . . 14 7 . . . 1 Fabricators . | . . . . . . . . . . . Repair Stations . | . . . . . . . . . . . Recycling Units 7 | . . . . . . 7 . . . . Scanalyzers . | . . . . . . . . . . . Garrison Access 3 | . . . . . 1 2 . . . . Terminal Hacks 57 | . 10 . 1 1 9 5 1 . 29 1 Record 13 | . . . . . . 1 . . 11 1 Part Schematic 12 | . . . . . . 1 . . 11 . Robot Schematic 4 | . . . . . . . . . 4 . Prototype ID Bank 9 | . 3 . . . 2 1 . . 3 . Open Door 2 | . . . . 1 . . 1 . . . Branch Access Points 2 | . 1 . . . 1 . . . . . Emergency Access Points 4 | . 1 . . . 2 1 . . . . Alert Level 2 | . . . . . 1 1 . . . . Locate Traps 4 | . 3 . . . 1 . . . . . Maintenance Status 1 | . . . . . 1 . . . . . Hauler Manifests 2 | . 2 . . . . . . . . . Zone Layout 1 | . . . . . 1 . . . . . Derelict Proto ID Bank 1 | . . . 1 . . . . . . . Fabricator Hacks . | . . . . . . . . . . . Repair Station Hacks . | . . . . . . . . . . . Recycling Unit Hacks 6 | . . . . . . 6 . . . . Recycle Component 2 | . . . . . . 2 . . . . Process 2 | . . . . . . 2 . . . . Retrieve Matter 2 | . . . . . . 2 . . . . Scanalyzer . | . . . . . . . . . . . Garrison Access Hacks 2 | . . . . . 1 1 . . . . Seal Access 1 | . . . . . 1 . . . . . Coupler Status 1 | . . . . . . 1 . . . . Unauthorized Hacks . | . . . . . . . . . . . Terminals . | . . . . . . . . . . . Fabricators . | . . . . . . . . . . . Repair Stations . | . . . . . . . . . . . Recycling Units . | . . . . . . . . . . . Scanalyzers . | . . . . . . . . . . . Garrison Access . | . . . . . . . . . . . Data Cores Recovered 1 | . 1 . . . . . . . . . Used . | . . . . . . . . . . . Hacking Detections 16 | . 7 . . . 3 5 . . . 1 Full Trace Events . | . . . . . . . . . . . Feedback Events . | . . . . . . . . . . . Feedback Blocked . | . . . . . . . . . . . Robot Schematics Acquired 4 | . . . . . . . . . 4 . Robots Built . | . . . . . . . . . . . Authchips . | . . . . . . . . . . . Time . | . . . . . . . . . . . Total Robot Build Rating . | . . . . . . . . . . . Part Schematics Acquired 12 | . . . . . . 1 . . 11 . Parts Built . | . . . . . . . . . . . Authchips . | . . . . . . . . . . . Time . | . . . . . . . . . . . Total Part Build Rating . | . . . . . . . . . . . Parts Repaired . | . . . . . . . . . . . Time . | . . . . . . . . . . . Parts Recycled 2 | . . . . . . 2 . . . . Recycled Matter 116 | . . . . . . 116 . . . . Retrieved Matter 116 | . . . . . . 116 . . . . Retrieved Components . | . . . . . . . . . . . Parts Scanalyzed . | . . . . . . . . . . . Part Schematics Acquired . | . . . . . . . . . . . Parts Damaged . | . . . . . . . . . . . Bothacking | -11 -10 -10 -10 -9 -8 -7 -7 -7 -7 -6 ------------ Run | Yrd Mat Min Exi Min Mat Fac Low Low Dat Pro Used RIF Installer . | . . . . . . . . . . . Robots Hacked 2 | . 2 . . . . . . . . . Non-combat 2 | . 2 . . . . . . . . . Combat . | . . . . . . . . . . . Robot Hacks Applied 2 | . 2 . . . . . . . . . parse_system 1 | . 1 . . . . . . . . . no_distress 1 | . 1 . . . . . . . . . Relay Couplers Released . | . . . . . . . . . . . Fabnet Peak Effective % . | . . . . . . . . . . . Robots Rewired . | . . . . . . . . . . . Allies Hacked . | . . . . . . . . . . . Hacks Repelled . | . . . . . . . . . . . Allies | -11 -10 -10 -10 -9 -8 -7 -7 -7 -7 -6 -------- Run | Yrd Mat Min Exi Min Mat Fac Low Low Dat Pro Total Allies 3 | . . . . 2 . . . . . 1 Largest Group 2 | . . . . 2 1 . . . . 1 Highest-Rated Group 96 | . . . . 45 31 . . . . 96 Highest-Rated Ally 96 | . . . . 31 31 . . . . 96 Total Orders . | . . . . . . . . . . . Ally Attacks 26 | . . . . . 18 . . . . 8 Total Damage 321 | . . . . . 232 . . . . 89 Kills 4 | . . . . . 2 . . . . 2 Allies Corrupted . | . . . . . . . . . . . Allies Melted . | . . . . . . . . . . . Intel | -11 -10 -10 -10 -9 -8 -7 -7 -7 -7 -6 ------- Run | Yrd Mat Min Exi Min Mat Fac Low Low Dat Pro Robot Analysis Total . | . . . . . . . . . . . Derelict Logs Recovered 5 | . . . . 1 . . 1 2 . 1 Drone Launches . | . . . . . . . . . . . Drone Recoveries . | . . . . . . . . . . . Exploration | -11 -10 -10 -10 -9 -8 -7 -7 -7 -7 -6 ------------- Run | Yrd Mat Min Exi Min Mat Fac Low Low Dat Pro Turns Passed 10280 | 65 1280 141 941 987 1636 1620 1232 776 104 1498 Spaces Moved 6261 | 42 655 75 495 499 864 918 993 614 81 1025 Core 76 | 9 . . . . . . . . . 67 Treads . | . . . . . . . . . . . Legs 5870 | 33 655 75 495 499 864 918 993 614 81 643 Wheels 315 | . . . . . . . . . . 315 Hover . | . . . . . . . . . . . Flight . | . . . . . . . . . . . Fastest Speed 50 | 50 120 190 190 190 120 120 122 122 130 50 Average Speed 143 | 119 172 190 190 190 120 153 122 125 130 123 Slowest Speed 700 | 150 190 190 190 190 190 190 123 130 130 700 Overloaded Moves . | . . . . . . . . . . . Propulsion Burnouts . | . . . . . . . . . . . Robots Hopped . | . . . . . . . . . . . Cave-ins Triggered . | . . . . . . . . . . . Exploration Rate (%) 65 | 3 96 26 92 87 62 25 97 79 71 84 Regions Visited 10 Branch Regions 7 Pre-discovered Areas 1 | . . . . . . . . . 1 . Known Exits Taken 1 | . 1 . . . . . . . . . Unknown Exits Taken 9 | 1 . 1 1 1 1 1 1 1 1 . Scrap Searched 18 | . . 1 . 1 . . 4 12 . . Spaces Dug . | . . . . . . . . . . . Terrain Destroyed 55 | . 5 . . . 6 42 . . . 2 Melee . | . . . . . . . . . . . Projectile 9 | . 1 . . . 6 . . . . 2 AOE 46 | . 4 . . . . 42 . . . . Terrain Rammed . | . . . . . . . . . . . Walls Destroyed . | . . . . . . . . . . . Machines Disabled . | . . . . . . . . . . . Actions | -11 -10 -10 -10 -9 -8 -7 -7 -7 -7 -6 --------- Run | Yrd Mat Min Exi Min Mat Fac Low Low Dat Pro Total 7204 | 57 784 74 496 529 1317 1064 1010 620 80 1173 Wait 556 | . 61 . . 20 352 69 3 1 . 50 Move 6251 | 41 654 74 494 498 863 917 992 613 80 1025 Hop . | . . . . . . . . . . . Pick Up 74 | 10 26 . 1 1 10 11 5 . . 10 Fast Attach . | . . . . . . . . . . . Attach 45 | 6 1 . . . 12 6 1 . . 19 Detach . | . . . . . . . . . . . Swap 37 | . 11 . . 1 8 10 3 3 . 1 Drop 29 | . 15 . 1 1 1 4 4 3 . . Fire 180 | . 13 . . 8 70 19 2 . . 68 Melee 4 | . 3 . . . 1 . . . . . Ram . | . . . . . . . . . . . Kick 28 | . . . . . . 28 . . . . Crush . | . . . . . . . . . . . Escape Stasis . | . . . . . . . . . . . Rewire . | . . . . . . . . . . . Trap . | . . . . . . . . . . . Miscellaneous . | . . . . . . . . . . . Route ------- -11/Scrapyard -10/Materials (discovered 4 exits: [*Mat x3] / *Min) -10/Mines -10/Exiles (discovered 2 exits: *Min x2) -9/Mines -8/Materials -7/Factory -7/Lower Caves -7/Lower Caves (discovered 2 exits: [*Fac] / *Dat) -7/Data Miner -6/Proximity Caves History --------- Turn | Location | Event 38 | -11/Scrapyard | Discovered new exit (range 14) 66 | -11/Scrapyard | Entered Materials 227 | -10/Materials | Identified exit to Mines 302 | -10/Materials | Build established: Mutant 563 | -10/Materials | Discovered new exit (range 14) 879 | -10/Materials | Discovered new exit (range 10) 1232 | -10/Materials | Discovered new exit (range 3) 1346 | -10/Materials | Entered Mines 1396 | -10/Mines | Found DCF Scrap (13 items) 1398 | -10/Mines | Met a Derelict bent on vengeance 1479 | -10/Mines | Deemed a non-threat by the Exiles lab entrance 1479 | -10/Mines | Discovered new exit (range 5) 1487 | -10/Mines | Entered Exiles 1520 | -10/Exiles | Discovered new exit (range 15) 1560 | -10/Exiles | Met 8R-AWN 1600 | -10/Exiles | Met EX-HEX 1672 | -10/Exiles | Met EX-DEC 1732 | -10/Exiles | Visited The Gauntlet 2019 | -10/Exiles | Met EX-BIN 2139 | -10/Exiles | Aligned with FarCom system 2141 | -10/Exiles | Given EX-Vault access code 2187 | -10/Exiles | Opened EX-Vault 2197 | -10/Exiles | Found Modified TNC 2234 | -10/Exiles | Warned to stay clear of 0b10 Research branches 2409 | -10/Exiles | Discovered new exit (range 10) 2428 | -10/Exiles | Left Exiles lab with Modified TNC 2428 | -10/Exiles | Entered Mines 2541 | -9/Mines | Discovered new exit (range 15) 2565 | -9/Mines | Met a Derelict shopkeep closing up shop 2825 | -9/Mines | Learned Materials emergency access door positions 3199 | -9/Mines | Found a hidden stash of uninstalled traps 3415 | -9/Mines | Entered Materials 3415 | -8/Materials | Accompanied by 1 ally 3415 | -8/Materials | Evolved 4 slots: Power x1, Propulsion x2, Utility x1 3420 | -8/Materials | Led the pair of lost Derelicts to an unsafe place 4702 | -8/Materials | Lost 6 parts (2p4n) 4979 | -8/Materials | Build established: Scavenger-Mutant 5032 | -8/Materials | Discovered new exit (range 16) 5051 | -8/Materials | Entered Factory 5051 | -7/Factory | Evolved 2 slots: Utility x1, Weapon x1 5543 | -7/Factory | Build established: Skirmisher 5841 | -7/Factory | Lost 3 parts (2n1w) 6172 | -7/Factory | Garrison activated, responded to threat 6182 | -7/Factory | Build established: Scavenger-Skirmisher 6654 | -7/Factory | Discovered new exit (range 11) 6671 | -7/Factory | Entered Lower Caves 7068 | -7/Lower Caves | Spotted B-75 Beast 7216 | -7/Lower Caves | Build established: Mutant 7361 | -7/Lower Caves | Learned location of 1 exit from Factory 7782 | -7/Lower Caves | Encountered a Warlord checkpoint 7892 | -7/Lower Caves | Discovered new exit (range 7) 7903 | -7/Lower Caves | Entered another Lower Caves area 7980 | -7/Lower Caves | Discovered new exit (range 12) 8305 | -7/Lower Caves | Found DCF Scrap (12 items) 8452 | -7/Lower Caves | Encountered a Warlord checkpoint 8462 | -7/Lower Caves | Learned location of 1 exit from Factory 8580 | -7/Lower Caves | Discovered new exit (range 5) 8601 | -7/Lower Caves | Build established: Derelict-Mutant 8679 | -7/Lower Caves | Entered Data Miner 8679 | -7/Data Miner | Discovered new exit (range 6) 8704 | -7/Data Miner | Met Data Miner 8731 | -7/Data Miner | Learned location of Section 7 (-3) 8731 | -7/Data Miner | Acquired the access code to Warlord's prototype stash 8756 | -7/Data Miner | Received God Mode back door access code from Data Miner 8783 | -7/Data Miner | Entered Proximity Caves 9019 | -6/Proximity Caves | Encountered an infested base 9079 | -6/Proximity Caves | Destroyed 7 combat bots 9136 | -6/Proximity Caves | Core integrity fell below 50% 9200 | -6/Proximity Caves | Lost 5 parts (1p3n1w) 9414 | -6/Proximity Caves | Escorted by Enhanced Grunt 9428 | -6/Proximity Caves | Build established: Mutant 9455 | -6/Proximity Caves | Lost 4 parts (1p2n1w) 9662 | -6/Proximity Caves | Attracted the attention of an 0b10 checkpoint 9674 | -6/Proximity Caves | Core integrity fell below 20% 9806 | -6/Proximity Caves | Spotted B-75 Beast 9977 | -6/Proximity Caves | Lost 10 parts (1p2n3u4w) 10281 | -6/Proximity Caves | Destroyed by B-75 Beast with Magnetic Acceleration Cannon Last Messages --------------- 09919_ Flexi-carbon Leg destroyed. 09930_ Imp. Deuterium Engine destroyed. 09930_ Lyr. Medium Armor Plating destroyed. 09935_ Lrg. Storage Unit destroyed. 09935_ Ripper destroyed. 09946_ Plasma Rifle destroyed. 09946_ Knocked back. 09954_ Acquired 5 matter. 09975_ Acquired Wheel. 10017_ Acquired 14 matter. 10020_ Acquired 1 matter. 10040_ System corrupted: Heat flow error (+295). 10083_ VQQJC5>O1F &QMEC8